bitfinex-derivatives/quotes_ETHF0:USTF0_20260207
["timestamp","ask_amount","ask_price","bid_price","bid_amount"]
[1770491472638,0.55773826,2092.6,2091.4,0.55498777]
[1770491474552,0.55773826,2092.6,2091.2,0.00348114]
[1770491474553,0.55773826,2092.4,2091.2,0.55846891]
[1770491475344,0.55773826,2092.3,2091.2,0.55846891]
[1770491475745,0.55773826,2092.2,2091.2,0.00348114]
[1770491475947,5.71277406,2092.3,2091.2,0.00348114]
[1770491475948,0.55773826,2092.0,2091.2,0.00348114]
[1770491476341,0.55773826,2092.0,2090.8,0.55498777]
[1770491476342,0.55773826,2091.9,2090.8,0.55498777]
[1770491476548,0.55773826,2091.9,2090.4,0.55498777]
[1770491476749,0.55773826,2091.8,2090.4,0.55498777]
[1770491477259,0.55773826,2091.8,2090.5,0.55498777]
[1770491478257,0.55773826,2092.3,2090.7,0.55498777]
[1770491478455,0.55773826,2092.3,2090.8,0.55498777]
[1770491478651,6.27051232,2092.5,2090.9,0.55498777]
[1770491478852,0.55773826,2092.5,2091.1,0.55498777]
[1770491480362,0.55773826,2092.5,2091.2,0.55498777]
[1770491481162,0.55773826,2092.5,2091.1,0.55498777]
[1770491481863,0.55773826,2092.3,2091.1,0.55498777]
[1770491482163,0.55773826,2092.3,2090.6,5.69994551]
[1770491482164,0.79692826,2092.2,2090.7,0.55498777]
[1770491482358,0.55773826,2092.1,2090.7,4.9628362]
[1770491482559,0.55773826,2092.1,2090.8,0.55498777]
[1770491483461,0.55773826,2092.4,2090.9,0.55498777]
[1770491483664,0.55773826,2092.4,2091.1,0.55498777]
[1770491485464,0.55773826,2091.4,2089.8,0.55498777]
[1770491485658,0.55773826,2091.4,2089.9,17.07329042]
[1770491485864,0.55773826,2090.9,2090.0,2.84129561]
[1770491486063,0.55773826,2090.9,2089.8,0.55498777]
[1770491486468,0.55773826,2090.9,2089.9,19.91458603]
[1770491486469,0.56364364,2090.9,2089.9,19.91458603]
[1770491486666,0.56364364,2090.9,2089.9,17.07329042]
[1770491486970,0.55773826,2090.7,2089.9,17.07329042]
[1770491487366,2.85340644,2090.8,2090.1,0.55498777]
[1770491487663,0.56364364,2090.9,2090.1,0.55498777]
[1770491487870,0.56364364,2090.9,2090.2,20.4695738]
[1770491488170,0.56364364,2090.9,2090.2,0.55498777]
[1770491488363,0.56364364,2090.9,2090.3,19.91458603]
[1770491488563,0.56364364,2090.9,2090.1,20.4695738]
[1770491488764,0.56364364,2090.9,2090.1,0.55498777]
[1770491488968,0.00590538,2090.9,2090.3,0.55498777]
[1770491489171,0.56364364,2090.9,2090.4,2.84129561]
[1770491489363,0.56364364,2090.9,2090.1,0.55498777]
[1770491489565,0.56364364,2090.9,2090.2,2.84129561]
[1770491489769,0.00590538,2090.9,2090.3,0.55498777]
[1770491489969,0.00590538,2090.9,2090.4,0.55498777]
[1770491490170,0.00590538,2090.9,2090.4,20.4695738]
[1770491490463,0.00590538,2090.9,2090.5,3.39628338]
[1770491490664,0.55773826,2091.1,2090.6,3.39628338]
[1770491490862,0.55773826,2091.1,2090.7,17.07329042]
[1770491491064,0.55773826,2091.1,2090.7,19.91458603]
[1770491491561,0.56263535,2091.1,2090.7,17.07329042]
[1770491492072,0.55773826,2091.3,2090.8,3.39628338]
[1770491492466,0.55773826,2091.3,2090.9,19.91458603]
[1770491492667,0.55773826,2091.3,2090.6,0.55498777]
[1770491492862,0.55773826,2091.3,2090.7,20.4695738]
[1770491493069,0.56310851,2091.3,2090.7,0.55498777]
[1770491493268,0.56310851,2091.3,2090.8,17.07329042]
[1770491494469,0.56310851,2091.3,2090.7,2.84129561]
[1770491494676,0.56310851,2091.3,2090.7,19.91458603]
[1770491495666,0.23932,2091.1,2090.1,0.58045293]
[1770491496175,0.23932,2091.1,2090.3,0.58045293]
[1770491496374,3.09272644,2091.1,2090.3,0.58045293]
[1770491497272,2.85340644,2091.0,2090.1,0.58118965]
[1770491497472,2.85340644,2091.0,2089.9,6.91326494]
[1770491497473,0.48653655,2090.8,2089.9,6.91326494]
[1770491498379,0.48653655,2090.8,2090.0,0.53982446]
[1770491498677,0.48653655,2090.8,2089.9,6.91326494]
[1770491498971,0.48653655,2090.8,2090.0,6.91326494]
[1770491499879,0.48653655,2090.8,2090.0,7.4530894]
[1770491500176,0.48653655,2090.8,2090.0,0.53982446]
[1770491500577,0.49097563,2090.7,2090.1,5.77692494]
[1770491500767,0.49097563,2090.7,2089.9,5.77692494]
[1770491501576,0.73033563,2090.7,2089.9,5.77692494]
[1770491501774,0.49045675,2090.6,2089.9,5.77692494]
[1770491502470,0.49045675,2090.5,2089.8,0.0047673]
[1770491502674,0.49045675,2090.5,2089.8,5.78169224]
[1770491503171,0.49045675,2090.5,2088.5,0.08326843]
[1770491503172,0.23941,2090.3,2089.3,0.53982446]
[1770491503376,3.09281644,2090.3,2089.5,0.58045293]
[1770491503780,3.09281644,2090.3,2089.6,4.81132026]
[1770491504078,2.85340644,2090.5,2089.7,0.58045293]
[1770491504375,2.85340644,2090.6,2089.7,0.58510274]
[1770491504573,2.85340644,2090.6,2089.8,5.39177319]
[1770491504877,2.85340644,2090.6,2089.9,0.57915487]
[1770491504878,0.00259612,2090.5,2089.9,0.57915487]
[1770491505280,0.00259612,2090.4,2089.7,0.58380468]
[1770491505575,2.85340644,2090.5,2089.7,0.00464981]
[1770491505576,0.00259612,2090.2,2089.7,0.00464981]
[1770491505879,0.00259612,2090.2,2089.7,0.00205369]
[1770491506081,2.84622953,2090.4,2089.8,0.05238446]
[1770491506278,0.54335534,2090.3,2089.7,1.71850382]
[1770491506879,0.54335534,2090.3,2089.8,1.71850382]
[1770491507076,43.39685587,2090.6,2089.9,0.53982446]
[1770491507282,0.23934,2090.9,2090.1,0.53982446]
[1770491507478,0.78269534,2090.9,2090.1,0.53982446]
[1770491507680,0.54335534,2090.8,2090.1,0.53982446]
[1770491508975,0.54335534,2091.0,2090.3,0.53982446]
[1770491509180,0.54335534,2091.2,2090.3,0.53982446]
[1770491509379,0.54335534,2091.2,2090.5,0.53982446]
[1770491509575,0.54335534,2091.2,2090.1,0.53982446]
[1770491510184,0.54335534,2091.2,2090.3,0.53982446]
[1770491510382,0.54335534,2091.1,2090.3,0.53982446]
[1770491510786,0.54335534,2091.1,2090.4,1.71850382]
[1770491511179,0.54335534,2090.9,2090.4,1.71850382]
[1770491511379,0.54335534,2090.9,2089.9,0.53982446]
[1770491511682,0.54335534,2090.7,2090.0,0.53982446]
[1770491512480,0.54335534,2090.7,2090.1,1.76970828]
[1770491512681,43.39685587,2090.9,2090.2,0.53982446]
[1770491513279,0.54335534,2090.8,2090.3,1.22988382]
[1770491513480,0.54335534,2090.7,2090.3,1.22988382]
[1770491514285,0.54335534,2090.6,2090.3,1.22988382]
[1770491514875,43.39685587,2090.6,2089.8,0.58418627]
[1770491515179,42.85350053,2090.5,2089.8,0.58418627]
[1770491516485,42.85350053,2090.3,2089.3,0.58045293]
[1770491516685,8.50853593,2091.1,2088.7,0.58045293]
[1770491516686,42.85350053,2089.7,2088.7,0.58045293]
[1770491516983,42.85350053,2090.0,2088.7,0.58045293]
[1770491517284,6.2561294,2090.5,2088.8,0.53982446]
[1770491517491,0.54335534,2090.2,2088.8,0.54551934]
[1770491518485,0.54335534,2090.1,2088.8,0.54551934]
[1770491519882,6.2561294,2090.1,2088.8,0.54551934]
[1770491520084,0.54335534,2090.0,2088.8,0.54551934]
[1770491521680,6.4955494,2090.2,2088.8,0.54551934]
[1770491521886,0.54335534,2090.1,2088.8,0.54551934]
[1770491525293,6.2561294,2090.2,2088.8,0.54551934]
[1770491525493,0.54821794,2090.3,2088.8,0.54551934]
[1770491526195,0.54821794,2090.1,2088.8,0.54551934]
[1770491526584,0.54821794,2090.0,2088.8,0.54551934]
[1770491528295,6.260992,2090.0,2088.8,0.54551934]
[1770491529190,0.54821794,2089.9,2088.8,0.54551934]
[1770491531989,0.55029477,2089.8,2088.8,0.54551934]
[1770491535798,0.55029477,2089.7,2088.8,0.54551934]
[1770491536294,0.78978477,2089.6,2088.8,0.00569488]
[1770491536488,0.55029477,2089.5,2088.8,0.53814779]
[1770491537191,0.55029477,2089.5,2088.8,0.00569488]
[1770491537594,0.55029477,2089.6,2088.8,0.53814779]
[1770491538296,0.55029477,2089.5,2088.8,0.00569488]
[1770491538497,0.55029477,2089.5,2088.6,0.53245291]
[1770491538498,0.55029477,2089.4,2088.4,0.53245291]
[1770491539300,0.55029477,2089.3,2088.4,0.53245291]
[1770491539493,0.55029477,2089.3,2088.4,0.53712914]
[1770491540294,0.55029477,2089.3,2088.4,0.00467623]
[1770491540495,0.55029477,2089.3,2088.4,0.53712914]
[1770491540697,0.55029477,2089.2,2088.4,0.00467623]
[1770491540897,6.26306883,2089.2,2088.4,0.00467623]
[1770491541092,0.55029477,2089.1,2088.4,0.00467623]
[1770491543097,0.55029477,2088.8,2088.0,0.53245291]
[1770491543404,0.23957,2088.9,2088.0,0.53245291]
[1770491543405,0.55029477,2088.7,2088.0,0.53245291]
[1770491544099,0.55457257,2088.7,2088.0,0.53622153]
[1770491544897,0.55457257,2088.7,2088.0,0.00376862]
[1770491545498,0.54503242,2088.6,2087.6,0.53245291]
[1770491545801,0.54503242,2088.6,2087.2,0.53245291]
[1770491546199,0.5412638,2088.5,2087.2,0.53245291]
[1770491546508,0.5412638,2088.5,2087.2,0.53832932]
[1770491546807,0.5412638,2088.5,2087.3,0.53245291]
[1770491547603,0.23963,2088.4,2087.2,0.00587641]
[1770491547906,0.55029477,2088.1,2087.3,0.53245291]
[1770491548703,0.78508682,2088.3,2087.3,0.53245291]
[1770491548905,0.54544682,2088.2,2087.3,0.53245291]
[1770491550300,0.54544682,2088.2,2087.2,0.00587641]
[1770491550496,0.54544682,2088.1,2087.2,0.53832932]
[1770491550805,43.37004561,2088.3,2087.2,0.53832932]
[1770491551005,0.55029477,2088.3,2087.2,0.53832932]
[1770491553003,0.53762448,2088.5,2087.2,0.53832932]
[1770491553403,0.53762448,2088.6,2087.2,0.53832932]
[1770491553998,0.53762448,2088.4,2087.2,0.53832932]
[1770491554410,0.53762448,2088.2,2087.2,0.53832932]
[1770491560811,0.54418985,2088.1,2087.2,0.53832932]
[1770491561012,0.54418985,2088.0,2087.2,0.53832932]
[1770491562208,42.81975084,2088.1,2087.2,0.53832932]
[1770491562209,42.23878646,2088.1,2087.2,0.53832932]
[1770491562413,0.55359475,2088.6,2087.2,0.53832932]
[1770491563014,0.55359475,2088.5,2087.2,0.53832932]
[1770491563411,0.55359475,2088.4,2087.2,0.53832932]
[1770491563616,0.55359475,2088.3,2087.2,0.53832932]
[1770491563814,0.55359475,2088.2,2087.2,0.00587641]
[1770491564018,0.55359475,2088.2,2087.2,0.56741783]
[1770491564913,0.55359475,2088.2,2087.2,0.00587641]
[1770491565417,0.55359475,2088.1,2087.2,0.56741783]
[1770491566412,0.55359475,2088.0,2087.2,0.00587641]
[1770491566821,0.55359475,2088.0,2087.2,0.56741783]
[1770491567014,0.55359475,2088.0,2087.2,0.00587641]
[1770491567211,6.26636881,2088.0,2087.2,0.00587641]
[1770491567414,0.55359475,2087.9,2087.2,0.00587641]
[1770491567816,6.26636881,2087.9,2087.2,0.00587641]
[1770491568023,0.55359475,2087.9,2087.2,0.56741783]
[1770491568822,6.50602881,2088.1,2087.2,0.56741783]
[1770491569027,0.55359475,2088.0,2087.2,0.56741783]
[1770491571310,5.71277406,2088.1,2087.2,0.56741783]
[1770491571510,0.55359475,2088.2,2087.2,0.56741783]
[1770491572215,5.71277406,2088.2,2087.2,0.56741783]
[1770491572416,6.26636881,2088.2,2087.2,0.56741783]
[1770491572811,0.55359475,2088.1,2087.2,0.56741783]
[1770491573616,0.55359475,2088.0,2087.2,0.56741783]
[1770491575016,0.55359475,2087.8,2087.2,0.00587641]
[1770491575315,0.55359475,2087.7,2087.2,0.00587641]
[1770491575617,5.71277406,2087.9,2087.2,0.56741783]
[1770491576025,6.26636881,2087.9,2087.2,0.56741783]
[1770491576414,5.71277406,2087.8,2087.2,0.56741783]
[1770491577319,6.26636881,2087.8,2087.2,0.56741783]
[1770491577522,0.55359475,2087.7,2087.2,0.56741783]
[1770491578324,5.71277406,2087.8,2087.2,0.56741783]
[1770491578721,5.71277406,2088.1,2087.2,0.56741783]
[1770491579224,6.26636881,2088.1,2087.2,0.56741783]
[1770491580315,5.71277406,2088.1,2087.2,0.56741783]
[1770491580823,5.71277406,2088.4,2087.4,0.56154142]
[1770491581126,5.71277406,2088.4,2087.5,0.56154142]
[1770491581322,5.71277406,2088.5,2087.5,0.56154142]
[1770491581621,0.55359475,2088.6,2087.6,0.56154142]
[1770491581622,6.26636881,2088.6,2087.6,0.56154142]
[1770491581823,0.55359475,2088.5,2087.6,0.56154142]
[1770491582422,0.55359475,2088.2,2087.4,0.56154142]
[1770491582625,5.71277406,2088.3,2087.4,0.56154142]
[1770491582825,0.55359475,2088.3,2087.4,0.56154142]
[1770491583624,6.26636881,2088.5,2087.4,0.56154142]
[1770491583818,6.26636881,2088.5,2087.5,0.56154142]
[1770491584818,0.55359475,2088.4,2087.5,0.56154142]
[1770491585629,5.71277406,2088.6,2087.5,0.56154142]
[1770491585826,0.54024215,2088.5,2087.5,0.56154142]
[1770491586824,0.0042778,2088.7,2087.9,2.8603416]
[1770491587023,0.54024215,2089.2,2087.9,0.54000769]
[1770491588030,0.54490611,2089.2,2087.9,0.54000769]
[1770491588231,0.54490611,2089.2,2087.9,4.85245976]
[1770491588426,0.54490611,2089.2,2088.0,0.54000769]
[1770491589125,0.23958,2088.8,2087.5,2.8603416]
[1770491589326,0.54024215,2088.7,2087.3,0.54000769]
[1770491591632,0.52705591,2088.6,2087.3,0.54000769]
[1770491592229,0.52705591,2088.5,2087.3,0.54000769]
[1770491593731,0.52705591,2088.5,2087.2,0.56014037]
[1770491594937,0.52705591,2088.3,2087.2,0.56014037]
[1770491595137,0.52705591,2088.3,2087.2,0.00587641]
[1770491595340,0.52705591,2088.2,2087.2,0.00587641]
[1770491596941,0.52705591,2088.0,2087.2,0.00587641]
[1770491602035,0.52705591,2088.0,2086.5,0.55426396]
[1770491602234,0.52705591,2087.8,2086.6,0.55426396]
[1770491602438,0.52705591,2087.8,2086.7,0.55426396]
[1770491602643,7.86926339,2088.5,2086.8,0.55426396]
[1770491602938,0.52705591,2088.6,2087.2,0.55426396]
[1770491603134,0.52705591,2088.6,2087.3,0.55426396]
[1770491604043,0.52705591,2088.6,2087.4,0.55426396]
[1770491604342,0.52705591,2088.9,2087.4,3.41460556]
[1770491604546,0.52705591,2088.9,2087.6,0.55426396]
[1770491605350,0.52705591,2088.9,2087.8,0.55426396]
[1770491605549,0.52705591,2089.1,2087.9,0.55426396]
[1770491605849,0.00466396,2089.2,2088.2,0.55426396]
[1770491606042,0.52705591,2089.5,2088.2,0.55426396]
[1770491606946,0.52705591,2089.5,2088.3,0.55426396]
[1770491607146,0.52705591,2089.5,2088.3,0.00584061]
[1770491607147,0.53150328,2089.5,2088.3,0.00584061]
[1770491607349,0.53150328,2089.5,2088.3,0.56010457]
[1770491608544,0.00444737,2089.5,2088.3,0.56010457]
[1770491608744,0.00444737,2089.5,2088.3,3.42044617]
[1770491608951,0.00444737,2089.5,2088.4,0.55426396]
[1770491608952,0.53150328,2089.5,2088.4,0.55426396]
[1770491612246,0.52705591,2089.3,2088.1,0.96815859]
[1770491612449,0.52705591,2089.2,2087.5,0.55426396]
[1770491612650,0.52705591,2089.0,2087.5,0.55426396]
[1770491612951,0.52705591,2088.7,2087.5,0.55426396]
[1770491613346,0.52705591,2088.7,2087.5,0.55821998]
[1770491614355,0.23957,2088.9,2087.5,0.55821998]
[1770491614554,0.52705591,2088.8,2087.5,0.55821998]
[1770491617953,0.53222313,2089.3,2087.5,0.55821998]
[1770491619948,0.77174313,2089.3,2087.5,0.55821998]
[1770491620154,0.53222313,2089.2,2087.5,0.55821998]
[1770491622152,0.53222313,2089.2,2087.7,0.2397]
[1770491622356,0.53222313,2089.2,2087.8,0.53112942]
[1770491622956,0.53222313,2089.0,2087.8,0.53112942]
[1770491628353,0.53222313,2089.2,2087.8,0.53112942]
[1770491629369,0.53222313,2089.2,2087.9,0.53112942]
[1770491629572,0.53222313,2089.2,2088.0,0.53112942]
[1770491630572,0.53222313,2089.4,2088.0,0.53112942]
[1770491631173,0.53222313,2089.4,2088.1,0.53112942]
[1770491632172,0.53222313,2089.3,2088.2,0.53112942]
[1770491632670,3.39297097,2089.2,2088.2,0.53112942]
[1770491633572,0.53222313,2089.1,2088.2,0.53112942]
[1770491633773,0.53222313,2089.2,2088.3,0.53112942]
[1770491636878,0.53222313,2089.1,2088.3,0.53112942]
[1770491638478,0.53222313,2088.6,2087.6,0.53112942]
[1770491641977,5.71112397,2088.8,2087.7,0.53112942]
[1770491641978,2.86074784,2088.8,2087.7,0.53112942]
[1770491642182,0.53222313,2088.6,2087.7,0.53112942]
[1770491642383,2.86074784,2088.7,2087.7,0.53112942]
[1770491642682,0.53222313,2088.6,2087.7,0.53112942]
[1770491643785,2.86074784,2088.7,2087.7,0.53112942]
[1770491643985,3.39297097,2088.8,2087.8,0.53112942]
[1770491644183,0.53222313,2088.7,2087.8,0.53112942]
[1770491644383,2.86074784,2088.8,2087.8,0.53112942]
[1770491644384,2.86074784,2088.8,2087.9,0.53112942]
[1770491644784,3.39297097,2088.9,2087.9,0.53112942]
[1770491644985,0.53222313,2088.8,2087.9,0.53112942]
[1770491645482,0.53222313,2088.7,2087.9,0.53112942]
[1770491647787,46.12493244,2088.9,2087.9,0.53112942]
[1770491648086,0.54312393,2088.8,2087.9,0.53112942]
[1770491651186,3.40387177,2088.8,2087.9,0.53112942]
[1770491651386,0.57403373,2088.7,2087.9,0.53112942]
[1770491652488,3.43478157,2088.8,2087.9,0.53112942]
[1770491652689,0.57403373,2088.8,2088.0,0.53047662]
[1770491657293,0.57199067,2088.7,2088.0,0.53047662]
[1770491660497,2.86074784,2088.8,2088.0,0.53047662]
[1770491660797,3.43273851,2088.8,2088.0,0.53047662]
[1770491660990,0.57199067,2088.7,2088.0,0.53047662]
[1770491661293,3.43273851,2088.8,2088.0,0.53047662]
[1770491661488,0.57199067,2088.8,2088.1,0.55732469]
[1770491663703,0.57199067,2088.8,2088.0,4.26579811]
[1770491663905,0.57199067,2088.7,2088.0,0.5421552]
[1770491665206,3.43273851,2088.8,2088.0,0.5421552]
[1770491665404,0.57199067,2088.7,2088.0,0.5421552]
[1770491665706,0.57199067,2088.7,2088.0,4.80795331]
[1770491666006,2.86074784,2088.9,2088.0,4.80795331]
[1770491666007,2.86074784,2088.9,2088.1,0.5406231]
[1770491666304,3.43273851,2088.9,2088.2,0.5406231]
[1770491666803,0.57199067,2088.8,2088.2,0.5406231]
[1770491666993,2.86074784,2088.9,2088.2,0.5406231]
[1770491667195,3.43273851,2089.0,2088.2,0.5406231]
[1770491668407,0.57199067,2088.9,2088.2,0.5406231]
[1770491668812,0.57199067,2088.9,2088.3,0.54252474]
[1770491672309,0.57199067,2088.9,2088.4,0.53941516]
[1770491672905,4.77128925,2088.8,2088.4,0.53941516]
[1770491673103,3.10936152,2088.7,2088.4,0.53941516]
[1770491673410,0.57199067,2088.8,2088.4,0.53941516]
[1770491674909,2.86074784,2088.7,2088.4,0.53941516]
[1770491675209,46.15379918,2088.8,2088.4,0.53941516]
[1770491675406,0.57684223,2088.7,2088.4,0.53941516]
[1770491675711,3.43759007,2088.7,2088.4,0.53941516]
[1770491676010,3.43759007,2088.8,2088.4,0.53941516]
[1770491676511,0.57684223,2088.7,2088.3,0.52782661]
[1770491676709,0.57684223,2088.7,2088.0,0.76749661]
[1770491676916,0.57684223,2088.7,2088.1,0.52782661]
[1770491677213,0.57684223,2088.6,2087.7,0.52782661]
[1770491685017,0.57684223,2088.4,2087.7,0.52782661]
[1770491685611,0.57684223,2088.6,2087.7,0.52782661]
[1770491685817,4.60682274,2088.5,2087.7,0.52782661]
[1770491686016,0.57684223,2088.5,2087.7,0.52782661]
[1770491686619,4.58314136,2088.4,2087.7,0.52782661]
[1770491686922,0.57684223,2088.5,2087.7,0.52782661]
[1770491687114,4.03512337,2088.4,2087.7,0.52782661]
[1770491687318,0.57684223,2088.5,2087.7,0.52782661]
[1770491689626,0.57684223,2088.4,2087.7,0.52782661]
[1770491694830,3.43759007,2088.3,2087.7,0.52782661]
[1770491695025,0.57684223,2088.3,2087.7,0.52782661]
[1770491697327,2.86074784,2088.5,2087.8,0.52782661]
[1770491697533,3.43759007,2088.6,2088.0,0.52782661]
[1770491698228,2.86074784,2088.6,2088.0,0.52782661]
[1770491698624,0.46674784,2088.6,2088.0,0.52782661]
[1770491699133,4.23654281,2088.5,2088.0,0.52782661]
[1770491699332,0.57684223,2088.7,2088.0,0.52782661]
[1770491699533,4.23665433,2088.6,2088.0,0.52782661]
[1770491699726,0.57684223,2088.7,2088.0,0.52782661]
[1770491699927,42.72106067,2088.8,2088.0,0.52782661]
[1770491699928,0.57684223,2088.5,2088.0,0.52782661]
[1770491700125,0.57684223,2088.5,2087.8,5.74013724]
[1770491700336,0.57684223,2088.3,2087.5,6.27191987]
[1770491700533,4.23648241,2088.2,2087.5,0.53178263]
[1770491700828,6.2879662,2089.0,2088.1,0.52782661]
[1770491701129,0.57684223,2088.8,2088.1,0.23965]
[1770491701327,0.57684223,2088.6,2088.1,0.23965]
[1770491701523,0.57684223,2088.6,2088.2,0.52782661]
[1770491702328,5.71112397,2089.0,2088.2,0.52782661]
[1770491702329,0.57684223,2088.9,2088.2,0.52782661]
[1770491702527,5.71112397,2089.0,2088.2,0.52782661]
[1770491702528,4.16072438,2088.8,2088.2,0.52782661]
[1770491702728,4.16072438,2088.7,2088.2,0.52782661]
[1770491702929,0.57684223,2088.9,2088.2,0.52782661]
[1770491704836,0.57684223,2088.9,2088.1,0.23965]
[1770491705135,0.57684223,2088.9,2088.2,0.52782661]
[1770491706435,0.57684223,2088.9,2088.4,0.57796815]
[1770491706636,0.04493285,2088.9,2088.4,0.57796815]
[1770491707333,0.53150714,2089.1,2088.4,0.57796815]
[1770491707534,0.53150714,2089.3,2088.6,0.57796815]
[1770491708539,0.53150714,2089.3,2088.8,0.57796815]
[1770491708936,0.53595451,2089.5,2088.8,0.57796815]
[1770491709136,0.00444737,2089.5,2088.8,0.81753815]
[1770491709336,0.00444737,2089.5,2088.9,0.57796815]
[1770491709633,5.72112397,2089.9,2089.0,0.57796815]
[1770491709634,0.53150714,2089.6,2089.0,0.57796815]
[1770491710142,0.53150714,2089.8,2089.0,0.57796815]
[1770491710441,0.53582547,2089.8,2089.0,0.58312281]
[1770491711142,0.53582547,2089.8,2089.1,0.57796815]
[1770491711638,0.00431833,2089.8,2089.4,0.56032264]
[1770491713141,0.00431833,2089.8,2089.0,0.00515466]
[1770491713142,0.54290849,2089.8,2089.0,0.00515466]
[1770491713743,0.54290849,2089.8,2089.0,0.5654773]
[1770491715945,0.53859016,2089.6,2088.9,0.23956]
[1770491716440,0.53859016,2089.4,2088.4,0.56032264]
[1770491717040,0.53859016,2089.2,2088.4,0.00372762]
[1770491718042,0.53859016,2089.2,2088.4,0.56405026]
[1770491718435,0.53859016,2089.6,2088.6,0.56032264]
[1770491718640,0.53859016,2089.4,2088.6,0.56032264]
[1770491719245,0.53859016,2089.2,2088.5,0.79993264]
[1770491719842,0.53859016,2089.2,2088.5,0.23961]
[1770491722047,0.53859016,2089.2,2088.4,0.00372762]
[1770491723454,0.53859016,2089.2,2088.4,0.56405026]
[1770491725450,0.53859016,2089.0,2088.4,0.56405026]
[1770491725651,0.53859016,2089.0,2088.4,0.00372762]
[1770491725850,0.53859016,2089.0,2088.4,0.56405026]
[1770491726851,0.53859016,2089.0,2088.4,0.00372762]
[1770491728252,0.53859016,2089.0,2088.4,0.56405026]
[1770491728448,5.71211296,2089.6,2088.7,0.56032264]
[1770491728650,4.65840896,2089.5,2088.7,0.56032264]
[1770491728847,4.65840896,2089.4,2088.7,0.56032264]
[1770491729047,0.53859016,2089.4,2088.7,0.56032264]
[1770491731152,0.53859016,2089.2,2088.6,0.79992264]
[1770491731560,0.53859016,2089.2,2088.7,0.56032264]
[1770491733660,0.53859016,2089.2,2088.6,0.2396]
[1770491733958,0.53859016,2089.2,2088.7,0.56032264]
[1770491734160,7.10690581,2089.8,2089.0,0.56032264]
[1770491734161,42.91474289,2089.7,2089.0,0.56032264]
[1770491734363,0.53859016,2089.5,2089.0,0.56032264]
[1770491737759,0.53080819,2089.3,2088.9,0.23956]
[1770491737958,0.53080819,2089.1,2088.4,0.00372762]
[1770491738359,0.53080819,2089.3,2088.4,0.54867868]
[1770491738560,4.08846045,2089.2,2088.4,0.54867868]
[1770491738761,4.08846045,2089.1,2088.4,0.54867868]
[1770491738961,0.53080819,2089.2,2088.4,0.54867868]
[1770491739163,4.61936015,2089.1,2088.4,0.54867868]
[1770491739361,0.53080819,2089.1,2088.4,0.54867868]
[1770491741568,0.53080819,2089.1,2088.5,0.54495106]
[1770491743768,0.53080819,2089.4,2088.6,0.54495106]
[1770491743973,4.6241138,2089.3,2088.6,0.54495106]
[1770491744272,4.09330561,2089.2,2088.6,0.54495106]
[1770491744476,0.53080819,2089.3,2088.7,0.54495106]
[1770491744672,4.09464587,2089.2,2088.7,0.54495106]
[1770491744867,0.53080819,2089.3,2088.7,0.54495106]
[1770491745069,0.53080819,2089.1,2088.7,0.54495106]
[1770491745372,0.53080819,2089.3,2088.7,0.54495106]
[1770491745574,0.53080819,2089.3,2088.4,5.74386486]
[1770491745575,3.61254478,2089.2,2088.8,0.54495106]
[1770491745769,0.53080819,2089.5,2088.8,0.54495106]
[1770491746474,0.53080819,2089.5,2088.8,0.78453106]
[1770491746664,0.53080819,2089.5,2088.9,0.54495106]
[1770491748072,0.53080819,2089.4,2088.8,0.23958]
[1770491748271,0.53080819,2089.4,2088.5,0.54495106]
[1770491748473,42.91474289,2089.6,2089.1,0.54495106]
[1770491748773,43.2566539,2089.6,2089.1,0.54495106]
[1770491749371,0.34191101,2089.6,2089.1,0.54495106]
[1770491750772,0.00431833,2089.8,2089.3,0.58091203]
[1770491751378,0.00916367,2089.9,2089.3,0.58091203]
[1770491752369,0.01296763,2089.9,2089.3,0.58091203]
[1770491754482,0.01296763,2089.9,2089.2,0.23953]
[1770491754983,0.01296763,2089.9,2089.2,0.82518353]
[1770491755284,0.01296763,2089.9,2089.3,0.58565353]
[1770491755582,0.01296763,2089.9,2089.2,0.82518353]
[1770491756284,0.01296763,2089.9,2089.3,0.58565353]
[1770491757784,0.01296763,2089.9,2089.2,0.82474891]
[1770491758378,0.01296763,2089.9,2089.3,0.58521891]
[1770491758575,2.87703755,2089.9,2089.3,0.58521891]
[1770491759787,2.87703755,2089.9,2089.3,0.58535971]
[1770491762986,2.87703755,2089.9,2089.4,0.58495881]
[1770491763286,2.86406992,2090.1,2089.5,0.58495881]
[1770491763492,2.86406992,2090.3,2089.8,0.58495881]
[1770491763790,2.86406992,2090.4,2089.8,0.58495881]
[1770491764184,2.86743687,2090.4,2089.8,0.58495881]
[1770491764493,2.86743687,2090.4,2089.8,0.92028132]
[1770491764989,2.86743687,2090.4,2089.9,0.58507464]
[1770491765189,0.00336695,2090.4,2089.9,0.58845243]
[1770491765692,2.86406992,2090.6,2089.9,0.58845243]
[1770491766083,45.77881281,2090.7,2089.9,0.58845243]
[1770491766283,2.86406992,2090.7,2089.9,0.58845243]
[1770491766680,2.86949324,2090.7,2090.0,0.58506185]
[1770491767093,0.00542332,2090.7,2090.0,0.58506185]
[1770491773193,0.00542332,2090.7,2090.1,0.23942]
[1770491773500,0.00542332,2090.7,2090.2,0.58991524]
[1770491773899,0.00542332,2090.7,2090.2,0.82932524]
[1770491774094,0.00542332,2090.7,2090.3,0.58991524]
[1770491775496,0.00542332,2090.7,2090.2,0.82998547]
[1770491775702,0.00542332,2090.7,2090.3,0.59057547]
[1770491777297,45.77881281,2091.1,2090.3,0.59057547]
[1770491777497,2.86406992,2091.1,2090.3,0.59057547]
[1770491778398,2.86994835,2091.1,2090.3,0.59057547]
[1770491779605,2.86994835,2091.1,2090.4,0.59267967]
[1770491779806,0.00587843,2091.1,2090.4,0.59267967]
[1770491781610,0.00587843,2091.1,2090.4,0.83206967]
[1770491781900,0.00587843,2091.1,2090.5,0.59104064]
[1770491782103,2.86406992,2091.5,2090.6,0.59104064]
[1770491782304,0.56619622,2092.6,2091.7,0.52758828]
[1770491782507,0.56619622,2092.6,2091.0,4.29638746]
[1770491782508,0.56619622,2092.6,2091.5,0.52758828]
[1770491782708,0.56619622,2092.6,2091.3,0.52758828]
[1770491783102,0.56619622,2092.6,2091.3,0.53172351]
[1770491783103,0.57199376,2092.6,2091.3,0.53172351]
[1770491783408,0.57199376,2092.6,2091.5,0.52758828]
[1770491784701,0.57199376,2092.6,2091.3,0.00413523]
[1770491784702,0.57199376,2092.6,2091.4,10.468]
[1770491784902,0.57199376,2092.6,2091.5,0.52758828]
[1770491786906,0.57199376,2092.6,2091.6,0.52758828]
[1770491787307,0.57199376,2092.6,2091.8,0.52758828]
[1770491787707,0.00579754,2092.6,2091.8,0.52758828]
[1770491788104,0.57199376,2092.6,2091.8,8.959]
[1770491788304,0.57199376,2092.6,2091.8,9.48658828]
[1770491788506,0.57199376,2092.6,2091.8,11.00858828]
[1770491788805,0.57199376,2092.6,2091.9,0.52758828]
[1770491790006,0.00579754,2092.6,2091.9,0.52758828]
[1770491790204,0.57199376,2092.6,2092.0,10.493]
[1770491790711,0.57199376,2092.6,2092.1,0.52758828]
[1770491791106,0.57199376,2092.6,2092.0,10.493]
[1770491791306,0.57199376,2092.6,2092.0,11.02058828]
[1770491791708,0.57199376,2092.6,2092.0,10.493]
[1770491791908,0.57199376,2092.6,2091.9,11.03358828]